bitfinex/quotes_BTCUSD_20251221
["timestamp","ask_amount","ask_price","bid_price","bid_amount"]
[1766346093412,1.4e-07,88503.0,88495.0,7e-08]
[1766346093618,1.4e-07,88503.0,88486.0,0.16698]
[1766346093619,0.000583,88497.0,88487.0,1.09e-06]
[1766346093825,0.000583,88497.0,88486.0,0.01130122]
[1766346094043,0.00010706,88497.0,88488.0,9.6e-07]
[1766346094203,0.00010706,88497.0,88489.0,0.01130083]
[1766346094757,0.000583,88489.0,88488.0,0.01130192]
[1766346094924,0.00010706,88497.0,88489.0,0.01130083]
[1766346095245,0.00010706,88497.0,88490.0,0.01120071]
[1766346095647,0.00010706,88497.0,88489.0,0.01120083]
[1766346096032,0.00010706,88497.0,88490.0,0.01130071]
[1766346096820,0.00010706,88497.0,88488.0,0.01130192]
[1766346097023,0.00010706,88497.0,88489.0,0.01130083]
[1766346097442,0.06779966,88496.0,88483.0,0.00568]
[1766346097658,0.01630018,88495.0,88483.0,0.00568]
[1766346097904,0.00500011,88495.0,88483.0,0.0169816]
[1766346098177,0.01129994,88496.0,88483.0,0.0169816]
[1766346098338,0.00500011,88495.0,88483.0,0.0113016]
[1766346098534,0.00500011,88495.0,88485.0,0.01130135]
[1766346098740,0.00510717,88497.0,88485.0,0.01130135]
[1766346098938,0.00510717,88497.0,88487.0,0.01130109]
[1766346099471,0.00510717,88497.0,88486.0,0.01130122]
[1766346099948,0.00510717,88497.0,88487.0,0.01130109]
[1766346100200,0.00510717,88497.0,88486.0,0.01130122]
[1766346100394,0.00510717,88497.0,88487.0,0.01130109]
[1766346101013,0.00510717,88497.0,88486.0,0.01130122]
[1766346101234,0.00510717,88497.0,88487.0,0.01130109]
[1766346101581,0.00510717,88497.0,88485.0,0.01130135]
[1766346101789,0.00510717,88497.0,88486.0,0.01130122]
[1766346101985,0.00510717,88497.0,88487.0,0.01130109]
[1766346102188,0.00010706,88497.0,88487.0,0.01130109]
[1766346102399,0.00510717,88497.0,88487.0,0.01130109]
[1766346103760,0.00510717,88497.0,88488.0,0.01130096]
[1766346104402,0.00510717,88497.0,88486.0,0.01130122]
[1766346104608,0.00010706,88497.0,88487.0,0.01130109]
[1766346104764,0.00510717,88497.0,88487.0,0.01130109]
[1766346104968,0.00510717,88497.0,88488.0,0.01130096]
[1766346105939,0.00010706,88497.0,88488.0,0.01130096]
[1766346106334,0.00010706,88497.0,88489.0,0.01130083]
[1766346106527,0.00010706,88497.0,88488.0,0.01130096]
[1766346106732,0.00010706,88497.0,88489.0,0.01130083]
[1766346107136,0.00010706,88497.0,88488.0,0.01130096]
[1766346107431,0.00010706,88497.0,88487.0,0.01130109]
[1766346107759,0.00010706,88497.0,88486.0,0.01130122]
[1766346108051,0.00010706,88497.0,88485.0,0.01130135]
[1766346108669,0.00010706,88497.0,88486.0,0.01130122]
[1766346109545,0.00010706,88497.0,88485.0,0.01130135]
[1766346109710,0.00510717,88497.0,88485.0,0.01130135]
[1766346109908,0.00510717,88497.0,88486.0,0.01130122]
[1766346111352,0.00510717,88497.0,88485.0,0.01130135]
[1766346111749,0.00510717,88497.0,88486.0,0.01130122]
[1766346111931,0.00510717,88497.0,88487.0,0.01130109]
[1766346112113,0.00010706,88497.0,88487.0,0.01130109]
[1766346112313,0.00510717,88497.0,88487.0,0.01130109]
[1766346113046,0.00510717,88497.0,88486.0,0.01130122]
[1766346113659,0.00510717,88497.0,88481.0,0.02260241]
[1766346113660,0.01640698,88497.0,88481.0,0.02260241]
[1766346113856,0.00510717,88497.0,88481.0,0.01130186]
[1766346114174,0.00510717,88497.0,88485.0,0.01130135]
[1766346114339,0.01640698,88497.0,88484.0,0.01130147]
[1766346114539,0.00510717,88497.0,88485.0,0.01130135]
[1766346114982,0.00510717,88497.0,88486.0,0.01130122]
[1766346115390,0.00010706,88497.0,88487.0,0.01130109]
[1766346115607,0.00510717,88497.0,88488.0,0.01130096]
[1766346116025,0.00510717,88497.0,88488.0,0.12676096]
[1766346116203,0.00510717,88497.0,88488.0,0.01130096]
[1766346117019,0.00010706,88497.0,88488.0,0.01130096]
[1766346117220,0.00010706,88497.0,88489.0,0.01130083]
[1766346117518,0.00490717,88499.0,88488.0,0.01130096]
[1766346117725,0.00490717,88499.0,88488.0,0.00010706]
[1766346118085,0.00490717,88499.0,88488.0,0.01140802]
[1766346118910,0.00490717,88499.0,88489.0,0.01130083]
[1766346119353,0.00490717,88499.0,88488.0,0.01140802]
[1766346119559,0.00490717,88499.0,88490.0,0.01130071]
[1766346119762,0.00568,88500.0,88493.0,0.01130032]
[1766346119972,0.00568,88500.0,88492.0,0.01130045]
[1766346121625,0.00568,88500.0,88493.0,0.01130032]
[1766346122250,0.00568,88500.0,88494.0,0.0113002]
[1766346123168,0.00568,88500.0,88495.0,0.01130007]
[1766346123465,0.00568,88500.0,88494.0,0.0113002]
[1766346126265,0.00568,88500.0,88493.0,0.01130032]
[1766346126700,0.00568,88500.0,88494.0,0.0113002]
[1766346127120,0.00568,88500.0,88493.0,0.01130032]
[1766346128250,0.00568,88500.0,88492.0,0.01130045]
[1766346128435,0.00568,88500.0,88493.0,0.01130032]
[1766346128933,0.00568,88500.0,88492.0,0.01130045]
[1766346129305,0.00490717,88499.0,88491.0,0.01130058]
[1766346129629,0.00490717,88499.0,88491.0,0.01120058]
[1766346129839,0.00568,88500.0,88490.0,0.01130071]
[1766346130043,0.01129994,88496.0,88488.0,0.00010706]
[1766346130247,0.01129994,88496.0,88479.0,0.30020211]
[1766346130248,0.0113002,88494.0,88483.0,0.00568]
[1766346130452,0.00010706,88494.0,88483.0,0.00568]
[1766346130865,0.01140726,88494.0,88483.0,0.00568]
[1766346131066,0.00010706,88494.0,88483.0,0.00568]
[1766346132625,0.00010706,88494.0,88483.0,0.0169816]
[1766346134303,0.00010706,88494.0,88484.0,0.01130147]
[1766346135002,0.00010706,88494.0,88483.0,0.0169816]
[1766346135208,0.00010706,88494.0,88484.0,0.01130147]
[1766346135576,0.00010706,88494.0,88485.0,0.01130135]
[1766346137639,0.00010706,88494.0,88484.0,0.01130147]
[1766346138032,0.00010706,88494.0,88485.0,0.01130135]
[1766346138861,0.00010706,88494.0,88488.0,0.01130096]
[1766346139435,0.00010706,88494.0,88489.0,0.01130083]
[1766346139644,0.00010706,88494.0,88491.0,0.01130058]
[1766346140391,0.00010706,88494.0,88489.0,0.01130083]
[1766346140597,0.00010706,88494.0,88490.0,0.01130071]
[1766346140950,0.00010706,88494.0,88491.0,0.01130058]
[1766346141756,1.4e-07,88503.0,88492.0,0.2889]
[1766346141980,0.00548,88500.0,88492.0,0.2889]
[1766346142584,0.00548,88500.0,88492.0,0.30020045]
[1766346142897,0.00548,88500.0,88492.0,0.2889]
[1766346143655,0.00548,88500.0,88492.0,0.30020045]
[1766346143859,0.00548,88500.0,88492.0,0.2889]
[1766346145322,0.00548,88500.0,88493.0,0.01130032]
[1766346145706,0.00548,88500.0,88492.0,0.30020045]
[1766346145955,0.00548,88500.0,88492.0,0.17803045]
[1766346148201,0.00548,88500.0,88493.0,0.01130032]
[1766346148723,0.00548,88500.0,88492.0,0.17803045]
[1766346149389,0.00548,88500.0,88493.0,0.01130032]
[1766346150010,0.00548,88500.0,88492.0,0.17803045]
[1766346150388,0.00548,88500.0,88493.0,0.01130032]
[1766346150593,0.00548,88500.0,88492.0,0.17803045]
[1766346151045,0.00548,88500.0,88493.0,0.01130032]
[1766346151200,0.00548,88500.0,88492.0,0.17803045]
[1766346151562,0.00548,88500.0,88493.0,0.01130032]
[1766346152210,0.00548,88500.0,88492.0,0.17803045]
[1766346153350,0.00548,88500.0,88495.0,0.01130007]
[1766346156074,0.00548,88500.0,88494.0,0.0113002]
[1766346157534,0.00548,88500.0,88495.0,0.01130007]
[1766346158631,0.00548,88500.0,88496.0,0.01129994]
[1766346159475,0.000583,88496.0,88494.0,0.0113002]
[1766346159873,0.00548,88500.0,88494.0,0.0111002]
[1766346160057,0.00548,88500.0,88492.0,0.01130045]
[1766346160265,0.00548,88500.0,88493.0,0.01130032]
[1766346160575,0.00548,88500.0,88492.0,0.01130045]
[1766346160782,0.00548,88500.0,88493.0,0.01130032]
[1766346160975,0.00548,88500.0,88492.0,0.01130045]
[1766346161342,0.00548,88500.0,88493.0,0.01130032]
[1766346161543,0.00548,88500.0,88492.0,0.01130045]
[1766346161779,0.00548,88500.0,88493.0,0.01130032]
[1766346163948,0.00548,88500.0,88494.0,0.0113002]
[1766346164162,0.00548,88500.0,88495.0,0.01130007]
[1766346164600,0.00548,88500.0,88494.0,0.0113002]
[1766346166330,0.00548,88500.0,88493.0,0.01130032]
[1766346168487,0.00548,88500.0,88495.0,0.01130007]
[1766346170414,1.4e-07,88503.0,88500.0,0.000516]
[1766346170599,4.707e-05,88505.0,88499.0,0.01129956]
[1766346171462,4.707e-05,88505.0,88498.0,0.01129969]
[1766346171646,0.00444038,88509.0,88498.0,0.01129969]
[1766346172031,0.00444038,88509.0,88499.0,0.01129956]
[1766346172578,0.00444038,88509.0,88501.0,0.0112993]
[1766346172781,0.00568,88511.0,88505.0,0.01129879]
[1766346173216,0.00568,88511.0,88504.0,0.01129892]
[1766346174014,0.00568,88511.0,88505.0,0.01129879]
[1766346174418,0.00568,88511.0,88504.0,0.01129892]
[1766346174623,0.00568,88511.0,88502.0,0.06779477]
[1766346174879,0.00568,88511.0,88504.0,0.01129892]
[1766346175047,0.00568,88511.0,88501.0,0.0112993]
[1766346175236,0.00568,88511.0,88503.0,0.01129905]
[1766346176081,0.00568,88511.0,88504.0,0.01129892]
[1766346176599,0.00568,88511.0,88503.0,0.01129905]
[1766346176768,0.00568,88511.0,88502.0,0.01129917]
[1766346176912,0.00568,88511.0,88503.0,0.01129905]
[1766346177130,0.00568,88511.0,88505.0,0.11992]
[1766346177342,0.00568,88511.0,88500.0,0.01129943]
[1766346177343,0.000583,88505.0,88500.0,0.01129943]
[1766346177552,0.000583,88505.0,88501.0,0.0112993]
[1766346177760,0.00568,88511.0,88503.0,0.01129905]
[1766346177992,0.00568,88511.0,88502.0,0.01129917]
[1766346178522,0.00568,88511.0,88503.0,0.01129905]
[1766346179526,0.00568,88511.0,88504.0,0.01129892]
[1766346179763,0.00568,88511.0,88503.0,0.01129905]
[1766346180092,0.00568,88511.0,88502.0,0.01129917]
[1766346180458,0.00568,88511.0,88501.0,0.0112993]
[1766346180823,0.00568,88511.0,88502.0,0.01129917]
[1766346181024,0.00568,88511.0,88504.0,0.01129892]
[1766346181242,0.00568,88511.0,88505.0,0.01129879]
[1766346182795,0.00568,88511.0,88506.0,0.01129866]
[1766346183020,0.005164,88511.0,88507.0,0.01129854]
[1766346183314,0.005164,88511.0,88506.0,0.01129866]
[1766346183504,0.005164,88511.0,88507.0,0.01129854]
[1766346183680,0.005164,88511.0,88506.0,0.01129866]
[1766346183876,0.005164,88511.0,88507.0,0.01129854]
[1766346184086,0.005164,88511.0,88505.0,0.01129879]
[1766346184288,0.005164,88511.0,88506.0,0.01129866]
[1766346185793,0.005164,88511.0,88505.0,0.01129879]
[1766346186608,0.005164,88511.0,88506.0,0.01129866]
[1766346186832,0.005164,88511.0,88507.0,0.01129854]
[1766346187035,0.005164,88511.0,88506.0,0.01129866]
[1766346187211,0.005164,88511.0,88507.0,0.01129854]
[1766346187628,0.005164,88511.0,88506.0,0.01129866]
[1766346187810,0.005164,88511.0,88507.0,0.01129854]
[1766346188212,0.005164,88511.0,88505.0,0.01129879]
[1766346188617,0.005164,88511.0,88506.0,0.01129866]
[1766346189270,0.005164,88511.0,88505.0,0.01129879]
[1766346189414,0.005164,88511.0,88506.0,0.01129866]
[1766346189845,0.005164,88511.0,88505.0,0.01129879]
[1766346190943,0.005164,88511.0,88506.0,0.01129866]
[1766346191223,0.005164,88511.0,88501.0,0.06779582]
[1766346191224,0.000549,88506.0,88496.0,0.19582]
[1766346191456,0.000549,88506.0,88487.0,0.0248736]
[1766346191457,0.00055,88497.0,88490.0,0.19582]
[1766346191675,0.00055,88497.0,88484.0,0.01130147]
[1766346191676,0.00055,88497.0,88484.0,0.01119713]
[1766346191677,0.00568,88496.0,88484.0,0.01119713]
[1766346191893,0.00603722,88496.0,88486.0,0.01130122]
[1766346192122,0.00603722,88496.0,88487.0,0.01130109]
[1766346192353,0.00603722,88496.0,88488.0,0.01130096]
[1766346192763,0.00603722,88496.0,88489.0,0.01130083]
[1766346192973,0.00603722,88496.0,88490.0,0.01130071]
[1766346193433,0.00603722,88496.0,88491.0,0.01130058]
[1766346193663,0.00603722,88496.0,88492.0,0.01130045]
[1766346195056,0.00603722,88496.0,88492.0,4.5e-07]
[1766346195496,0.00603722,88496.0,88492.0,0.0113009]
[1766346195938,0.00603722,88496.0,88492.0,4.5e-07]
[1766346196159,0.00603722,88496.0,88492.0,0.0113009]
[1766346196894,0.00603722,88496.0,88492.0,4.5e-07]
[1766346197320,0.00603722,88496.0,88492.0,0.0113009]
[1766346197752,0.00603722,88496.0,88492.0,4.5e-07]
[1766346197897,0.00603722,88496.0,88492.0,0.0113009]
[1766346198299,0.00603722,88496.0,88492.0,4.5e-07]
[1766346198723,0.00603722,88496.0,88492.0,0.0113009]
[1766346199352,0.00054855,88492.0,88489.0,0.01130083]
[1766346199520,0.00054855,88492.0,88490.0,0.05650355]
[1766346199720,0.00603722,88496.0,88490.0,0.05650355]
[1766346199928,0.00603722,88496.0,88490.0,0.01130071]
[1766346200766,0.00603722,88496.0,88491.0,0.01130058]
[1766346201267,0.00603722,88496.0,88492.0,0.01130045]
[1766346201685,0.00603722,88496.0,88493.0,0.01130032]
[1766346201894,0.00603722,88496.0,88492.0,0.01130045]
[1766346202093,0.00583722,88496.0,88492.0,0.01130045]
[1766346202256,0.00583722,88496.0,88491.0,0.01130058]
[1766346202456,0.00583722,88496.0,88492.0,0.01130045]
[1766346202651,0.00583722,88496.0,88491.0,0.01130058]
[1766346202867,0.00583722,88496.0,88492.0,0.01130045]
[1766346204470,0.00583722,88496.0,88491.0,0.01130058]
[1766346204912,0.00583722,88496.0,88492.0,0.01130045]
[1766346205684,0.00583722,88496.0,88491.0,0.01130058]
[1766346206107,0.00583722,88496.0,88492.0,0.01130045]
[1766346206540,0.00583722,88496.0,88491.0,0.01130058]
[1766346207325,0.00583722,88496.0,88490.0,0.01130071]
[1766346207490,0.00583722,88496.0,88491.0,0.01130058]
[1766346209632,0.00583722,88496.0,88492.0,0.01130045]
[1766346210253,0.00583722,88496.0,88491.0,0.01130058]
[1766346212469,0.00583722,88496.0,88490.0,0.01130071]
[1766346212677,0.00583722,88496.0,88491.0,0.01130058]
[1766346212892,0.00583722,88496.0,88488.0,0.01130096]
[1766346213066,0.00583722,88496.0,88487.0,0.01130109]
[1766346213283,0.00583722,88496.0,88488.0,0.01130096]
[1766346213711,0.00583722,88496.0,88490.0,0.01130071]
[1766346214101,0.00583722,88496.0,88491.0,0.01130058]
[1766346214787,0.00583722,88496.0,88490.0,0.01130071]
[1766346215305,0.00583722,88496.0,88491.0,0.01130058]
[1766346215851,0.00583722,88496.0,88490.0,0.01130071]
[1766346216053,0.00583722,88496.0,88491.0,0.01130058]
[1766346217159,0.00583722,88496.0,88490.0,0.01130071]
[1766346217897,0.00583722,88496.0,88491.0,0.01130058]
[1766346218299,0.00583722,88496.0,88490.0,0.01130071]
[1766346218497,0.00583722,88496.0,88491.0,0.01130058]
[1766346218902,0.00583722,88496.0,88490.0,0.01130071]
[1766346220214,0.00583722,88496.0,88489.0,0.01130083]
[1766346220664,0.00583722,88496.0,88490.0,0.01130071]
[1766346221698,0.00583722,88496.0,88489.0,0.01130083]
[1766346221923,0.000549,88489.0,88488.0,0.01130096]
[1766346222060,1.263e-05,88489.0,88488.0,0.01130096]
[1766346222242,0.00583722,88496.0,88489.0,0.01130083]
[1766346222448,0.00583722,88496.0,88488.0,0.01120096]
[1766346222895,0.00583722,88496.0,88489.0,0.01130083]
[1766346223111,0.00583722,88496.0,88485.0,0.01130135]
[1766346223281,0.000562,88489.0,88482.0,0.01130173]
[1766346223481,0.01713716,88496.0,88484.0,0.01130147]
[1766346223684,0.01713716,88496.0,88483.0,0.0113016]
[1766346223884,0.00583722,88496.0,88484.0,0.01130147]
[1766346224084,0.00583722,88496.0,88485.0,0.01130135]
[1766346225005,0.00583722,88496.0,88484.0,0.01130147]
[1766346225352,0.01713716,88496.0,88483.0,0.0113016]
[1766346225553,0.02204433,88496.0,88483.0,0.0113016]
[1766346226136,0.01074439,88496.0,88484.0,0.01130147]
[1766346226270,0.01074439,88496.0,88485.0,0.01130135]
[1766346226470,0.01074439,88496.0,88484.0,0.01130147]
[1766346227097,0.02204433,88496.0,88483.0,0.0113016]
[1766346227299,0.02204433,88496.0,88484.0,0.01130147]
[1766346227524,0.02204433,88496.0,88483.0,0.0113016]
[1766346228783,0.01074439,88496.0,88484.0,0.01130147]
[1766346229927,0.01074439,88496.0,88485.0,0.01130135]
[1766346231270,0.02204433,88496.0,88483.0,0.0113016]
[1766346231433,0.02204433,88496.0,88484.0,0.01130147]
[1766346232357,0.01074439,88496.0,88484.0,0.01130147]
[1766346232556,0.01074439,88496.0,88485.0,0.01130135]
[1766346232955,0.00583722,88496.0,88485.0,0.01130135]
[1766346233260,0.00490717,88495.0,88485.0,0.01130135]
[1766346233590,0.00490717,88495.0,88484.0,0.01130147]
[1766346233799,0.00490717,88495.0,88485.0,0.01130135]
[1766346234155,0.00583722,88496.0,88485.0,0.01130135]
[1766346234363,0.50596682,88510.0,88500.0,0.30795]
[1766346234364,0.00568,88510.0,88500.0,0.30795]
[1766346234588,0.00548,88510.0,88500.0,0.30795]
[1766346234903,0.00548,88510.0,88500.0,0.31924943]
[1766346235108,0.00548,88510.0,88501.0,0.0112993]
[1766346235312,0.00548,88510.0,88501.0,0.11496]
[1766346235668,0.00548,88510.0,88502.0,0.06779503]
[1766346235870,0.00548,88510.0,88504.0,0.01129892]
[1766346236074,0.00548,88510.0,88505.0,0.01129879]
[1766346236423,0.00548,88510.0,88504.0,0.01129892]
[1766346236770,0.00548,88510.0,88505.0,0.01129879]
[1766346236977,0.00548,88510.0,88504.0,0.01129892]
[1766346237573,0.00548,88510.0,88503.0,0.00736654]
[1766346237776,0.00548,88510.0,88503.0,0.01129905]
[1766346238013,0.00548,88510.0,88501.0,0.1262593]
[1766346238176,0.00548,88510.0,88504.0,0.00736641]
[1766346238396,0.00548,88510.0,88504.0,0.00972132]
[1766346238579,0.00548,88510.0,88503.0,0.00736654]
[1766346238780,0.00548,88510.0,88505.0,0.01129879]
[1766346239554,0.00548,88510.0,88504.0,0.00736641]
[1766346239703,0.00548,88510.0,88505.0,0.01129879]
[1766346239899,0.00548,88510.0,88504.0,0.00736641]
[1766346240517,0.00548,88510.0,88505.0,0.12625879]
[1766346240915,0.00548,88510.0,88505.0,0.11496]
[1766346241260,0.00548,88510.0,88505.0,0.01129879]
[1766346241411,0.00548,88510.0,88504.0,0.01129892]
[1766346242037,0.00548,88510.0,88501.0,0.0112993]
[1766346242295,0.00548,88510.0,88503.0,0.01129905]
[1766346242617,0.00548,88510.0,88502.0,0.01129917]
[1766346242813,0.000562,88502.0,88496.0,0.00568]
[1766346243270,0.06779204,88506.0,88496.0,0.00568]
[1766346243271,0.01129866,88506.0,88496.0,0.00568]
[1766346243883,0.01129892,88504.0,88496.0,0.00568]
[1766346244292,0.01129841,88508.0,88496.0,0.00568]
[1766346244496,0.01129854,88507.0,88496.0,0.00568]
[1766346244905,0.01129854,88507.0,88495.0,0.01130007]
[1766346245096,0.01129879,88505.0,88492.0,0.13194045]
[1766346245402,0.00568,88504.0,88496.0,0.01129994]
[1766346245634,0.00568,88504.0,88497.0,0.01129981]
[1766346246226,0.00568,88504.0,88496.0,0.01129994]
[1766346246375,0.00568,88504.0,88497.0,0.01129981]
[1766346247090,0.00568,88504.0,88496.0,0.01129994]
[1766346247719,0.00568,88504.0,88494.0,0.0113002]
[1766346247921,0.00568,88504.0,88496.0,0.01129994]
[1766346248121,0.00568,88504.0,88497.0,0.01129981]
[1766346248738,0.00568,88504.0,88496.0,0.01129994]
[1766346249170,0.00568,88504.0,88497.0,0.01129981]
[1766346249849,0.00568,88504.0,88498.0,0.01129969]
[1766346250208,0.00568,88504.0,88497.0,0.01129981]
[1766346250415,0.00568,88504.0,88498.0,0.01129969]
[1766346253416,0.00568,88504.0,88496.0,0.01129994]
[1766346253615,0.00568,88504.0,88497.0,0.01129981]
[1766346254159,0.00568,88504.0,88498.0,0.01129969]
[1766346254610,0.00568,88504.0,88497.0,0.01129981]
[1766346255007,0.00568,88504.0,88498.0,0.01129969]
[1766346256485,0.00568,88504.0,88496.0,0.01129994]
[1766346256690,0.00568,88504.0,88497.0,0.01129981]
[1766346257004,0.00568,88504.0,88496.0,0.01129994]
[1766346257222,0.00568,88504.0,88497.0,0.01129981]
[1766346257607,0.00568,88504.0,88498.0,0.01129969]
[1766346258128,0.00568,88504.0,88495.0,0.01130007]
[1766346258395,0.00568,88504.0,88496.0,0.01129994]
[1766346258546,0.00568,88504.0,88494.0,0.0113002]
[1766346258752,0.00568,88504.0,88495.0,0.01130007]
[1766346259135,0.00568,88504.0,88496.0,0.01129994]
[1766346259355,0.00568,88504.0,88497.0,0.01129981]
[1766346259673,0.00568,88504.0,88496.0,0.01129994]
[1766346259980,0.00568,88504.0,88494.0,0.0113002]
[1766346260157,0.00568,88504.0,88492.0,0.31798045]
[1766346260361,0.00568,88504.0,88491.0,0.05650291]
[1766346260362,0.01129905,88503.0,88491.0,0.00568]
[1766346260727,0.01129905,88503.0,88491.0,0.01678058]
[1766346260930,0.01697892,88504.0,88492.0,0.01130045]
[1766346261167,0.00568,88504.0,88493.0,0.01130032]
[1766346262150,0.00568,88504.0,88491.0,0.00548]
[1766346262351,0.00568,88504.0,88493.0,0.01130032]
[1766346262576,0.00568,88504.0,88492.0,0.01130045]
[1766346262754,0.00568,88504.0,88493.0,0.01130032]
[1766346263176,0.01697892,88504.0,88492.0,0.01130045]
[1766346263518,0.01129905,88503.0,88491.0,0.13853058]
[1766346264258,0.01697892,88504.0,88492.0,0.01130045]
[1766346264507,0.01129905,88503.0,88491.0,0.13853058]
[1766346265070,0.01697892,88504.0,88491.0,0.13853058]
[1766346265847,0.01129917,88502.0,88491.0,0.12723]
[1766346266064,0.01129905,88503.0,88491.0,0.12723]
[1766346266612,0.01129905,88503.0,88491.0,0.13853058]
[1766346266814,0.01697892,88504.0,88491.0,0.13853058]
[1766346267040,0.00568,88504.0,88492.0,0.01130045]
[1766346269099,0.00568,88504.0,88493.0,0.01130032]
[1766346269539,0.00568,88504.0,88492.0,0.01130045]
[1766346269923,0.00568,88504.0,88493.0,0.01130032]
[1766346270127,0.01697892,88504.0,88492.0,0.01130045]
[1766346270330,0.00568,88504.0,88492.0,0.01130045]
[1766346270946,0.00568,88504.0,88493.0,0.01130032]
[1766346272374,0.00568,88504.0,88492.0,0.01130045]
[1766346272639,0.000562,88492.0,88483.0,0.0113016]
[1766346272842,0.00568,88498.0,88487.0,0.01130109]
[1766346272991,0.01697969,88498.0,88486.0,0.01130122]
[1766346273187,0.00568,88498.0,88487.0,0.01130109]
[1766346273716,0.00568,88498.0,88486.0,0.01130122]
[1766346274133,0.00568,88498.0,88487.0,0.01130109]
[1766346274438,0.00568,88498.0,88488.0,0.01130096]
[1766346275939,0.00568,88498.0,88487.0,0.01130109]
[1766346278797,0.00568,88498.0,88488.0,0.01130096]
[1766346279284,0.00568,88498.0,88489.0,0.01130083]
[1766346280858,0.00568,88498.0,88487.0,0.01130109]
[1766346281271,0.00568,88498.0,88490.0,0.01130071]
[1766346281474,0.00568,88498.0,88489.0,0.01130083]
[1766346286093,0.00568,88498.0,88488.0,0.01130096]
[1766346286452,0.00568,88498.0,88485.0,0.00568]
[1766346286901,0.00568,88498.0,88485.0,0.01698135]
[1766346287031,0.00568,88498.0,88487.0,0.01130109]
[1766346287236,0.00568,88498.0,88488.0,0.11523]
[1766346287437,0.00568,88498.0,88487.0,0.19890109]
[1766346288450,0.00568,88498.0,88488.0,0.06780579]
[1766346289404,0.00568,88498.0,88490.0,0.01130071]
[1766346289627,0.00568,88498.0,88491.0,0.01130058]
[1766346289989,0.00548,88498.0,88491.0,0.01130058]
[1766346292022,0.00548,88498.0,88490.0,0.01130071]
[1766346293679,0.00548,88498.0,88491.0,0.01130058]
[1766346294458,0.00548,88498.0,88490.0,0.01130071]
[1766346295206,0.00548,88498.0,88489.0,0.01130083]
[1766346295427,0.00548,88498.0,88490.0,0.01130071]
[1766346297428,0.00548,88498.0,88489.0,0.01130083]
[1766346298068,0.00548,88498.0,88487.0,0.31413109]
[1766346298433,0.00548,88498.0,88487.0,0.30283]
[1766346298641,0.00548,88498.0,88487.0,0.31413109]
[1766346298843,0.00548,88498.0,88487.0,0.01130109]
[1766346299059,0.00548,88498.0,88488.0,0.01130096]
[1766346300125,0.00548,88498.0,88489.0,0.01130083]
[1766346300327,0.00548,88498.0,88488.0,0.01130096]
[1766346301272,0.00548,88498.0,88490.0,0.01130071]
[1766346301468,0.00548,88498.0,88491.0,0.01130058]
[1766346301669,0.004944,88498.0,88490.0,0.01130071]
[1766346302185,0.004944,88498.0,88491.0,0.01130058]
[1766346303227,0.004944,88498.0,88490.0,0.01130071]
[1766346303429,0.004944,88498.0,88491.0,0.01130058]
[1766346304943,0.004944,88498.0,88492.0,0.01130045]
[1766346305987,0.004944,88498.0,88491.0,0.01130058]
[1766346306329,0.004944,88498.0,88492.0,0.01130045]
[1766346306529,0.004944,88498.0,88491.0,0.01130058]
[1766346307805,0.004944,88498.0,88489.0,0.01130083]
[1766346308001,0.004944,88498.0,88491.0,0.01130058]
[1766346310751,0.004944,88498.0,88490.0,0.01130071]
[1766346311057,0.004944,88498.0,88491.0,0.01130058]
[1766346311258,0.004944,88498.0,88492.0,0.01130045]
[1766346312012,0.004944,88498.0,88491.0,0.01130058]
[1766346312346,0.004944,88498.0,88492.0,0.01130045]
[1766346312562,0.004944,88498.0,88491.0,0.01130058]
[1766346313382,0.004944,88498.0,88490.0,0.01130071]
[1766346314128,0.004944,88498.0,88154.0,0.4893258]
[1766346314129,0.000549,88490.0,88487.0,0.01130109]
[1766346314331,0.004944,88498.0,88489.0,0.01130083]
[1766346314533,0.004944,88498.0,88488.0,0.01130096]
[1766346314740,0.004944,88498.0,88489.0,0.01130083]
[1766346315330,0.004944,88498.0,88487.0,0.01130109]
[1766346315526,0.004944,88498.0,88488.0,0.01130096]
[1766346316038,0.004944,88498.0,88487.0,0.01130109]
[1766346316848,0.01129981,88497.0,88486.0,0.19328]
[1766346317496,0.01130096,88488.0,88473.0,0.11436]
[1766346317701,0.01130135,88485.0,88473.0,0.11436]
[1766346317903,0.0565067,88486.0,88473.0,0.11436]
[1766346317904,0.01130122,88486.0,88473.0,0.11436]
[1766346318139,0.01130122,88486.0,88473.0,0.12566288]
[1766346318370,0.01698109,88487.0,88475.0,0.01130262]
[1766346318849,0.01130122,88486.0,88474.0,0.01130275]
[1766346319099,0.01130122,88486.0,88473.0,0.12566288]
[1766346319323,0.01698109,88487.0,88474.0,0.01130275]
[1766346319551,0.01130122,88486.0,88474.0,0.01130275]
[1766346319771,0.01130122,88486.0,88473.0,0.12566288]
[1766346320013,0.01130122,88486.0,88474.0,0.01130275]
[1766346320456,0.01130122,88486.0,88473.0,0.12566288]
[1766346320773,0.01130147,88484.0,88472.0,0.20437]
[1766346321211,0.01130135,88485.0,88472.0,0.21567301]
[1766346321390,0.01130147,88484.0,88472.0,0.21567301]
[1766346321626,0.01130135,88485.0,88472.0,0.21567301]
[1766346323723,0.01130147,88484.0,88472.0,0.21567301]
[1766346323898,0.01130147,88484.0,88472.0,0.20437]
[1766346324241,0.01130147,88484.0,88472.0,0.21567301]
[1766346324684,0.02260269,88486.0,88473.0,0.11436]
[1766346325132,0.02260269,88486.0,88474.0,0.01130275]
[1766346325342,0.02260269,88486.0,88473.0,0.13134288]
[1766346325518,0.02260269,88486.0,88474.0,0.01130275]
[1766346326479,0.02260269,88486.0,88473.0,0.13134288]
[1766346326817,0.02260269,88486.0,88474.0,0.01130275]
[1766346327033,0.01130147,88486.0,88474.0,0.01130275]
[1766346327213,0.01130147,88486.0,88475.0,0.01130262]
[1766346327577,0.01130147,88486.0,88474.0,0.01130275]
[1766346327875,0.01130147,88486.0,88475.0,0.01130262]
[1766346328232,0.01130147,88486.0,88477.0,0.01130237]
[1766346328442,0.05629845,88498.0,88485.0,0.20094]
[1766346328642,0.00568,88497.0,88490.0,0.11426]
[1766346328828,0.00568,88497.0,88490.0,0.3152]
[1766346329244,0.01130147,88493.0,88490.0,0.3152]
[1766346329446,0.01129994,88496.0,88490.0,0.3152]
[1766346329647,0.01697981,88497.0,88490.0,0.3152]
[1766346329884,0.01697981,88496.0,88490.0,0.3152]
[1766346334901,0.01697981,88496.0,88484.0,0.32650147]
[1766346335111,0.01697981,88496.0,88486.0,0.01130122]
[1766346335507,0.01697981,88496.0,88486.0,0.12390122]
[1766346336037,0.01130007,88495.0,88482.0,0.11828]
[1766346336237,0.0113002,88494.0,88482.0,0.01698173]
[1766346336583,0.0113002,88494.0,88482.0,0.00568]
[1766346336767,0.0113002,88494.0,88482.0,0.01698173]
[1766346339044,0.01130032,88493.0,88479.0,0.0678094]